Cogmind - Beta 13 @@@ ROGUE MODE // 2024.06.01 @ 20:00:12 Player: Sionnis Result: Core destroyed Performance ------------- Evolutions (1) 500 Regions Visited (6) 1200 Robots Destroyed (105) 525 Value Destroyed (2049) 2049 Prototype IDs (28) 560 Alien Tech Used (0) 0 Bonus (135) 135 TOTAL SCORE: 4969 Bonus ------- High Alert Combat Kills 141 Follower Combat Kills 25 Aligned with FarCom 300 Friendly Fire -331 Cogmind --------- Core Integrity 0/400 Matter 136/300 Energy 280/280 System Corruption 0% Temperature Critical (525) Movement Walking (90) Location -8/Mines Parts ------- > --- POWER (1) -------- Heavy Ion Engine > --- PROPULSION (2) --- Potential Leg Potential Leg > --- UTILITY (3) ------ Large Storage Unit Medium Armor Plating Medium Armor Plating > --- WEAPON (3) ------- Spread Laser Shotgun Shotgun > --- INVENTORY (15) --- Heavy Ion Engine Armored Wheel Armored Wheel Armored Wheel Armored Wheel Remote Shield Flak Gun Advanced Assault Cannon Heavy Missile Launcher Peak State ------------ > --- POWER ------------ Heavy Ion Engine > --- PROPULSION ------- Potential Leg Potential Leg > --- UTILITY ---------- Large Storage Unit Improved Medium Armor Plating Shield Generator > --- WEAPON ----------- Spread Laser Shotgun Shotgun > --- INVENTORY -------- Heavy Ion Engine Armored Wheel Armored Wheel Armored Wheel Armored Wheel Medium Armor Plating Medium Armor Plating Medium Armor Plating Remote Shield Spread Laser Shotgun Shotgun Flak Gun Advanced Assault Cannon Heavy Missile Launcher [Rating: 40] Favorites ----------- Power Heavy Ion Engine Engine Heavy Ion Engine Power Core Light Nuclear Core Propulsion Light Treads Treads Light Treads Leg Potential Leg Wheel Armored Wheel Utility Large Storage Unit Device Shield Generator Storage Large Storage Unit Processor Targeting Computer Hackware Hacking Suite Protection Medium Armor Plating Weapon Shotgun Energy Gun Spread Laser Energy Cannon Advanced Beam Cannon Ballistic Gun Shotgun Build | -11 -10 -10 -9 -9 -9 -8 ------- Run | Yrd Mat Min Mat Min Exi Min Slots Evolved 2 | . . . 2 . . . Power . | . . . . . . . Propulsion . | . . . . . . . Utility 1 | . . . 1 . . . Weapon 1 | . . . 1 . . . Parts Attached 47 | 3 10 3 18 3 5 5 Power 8 | 1 2 1 4 . . . Engine 6 | 1 2 . 3 . . . Core 2 | . . 1 1 . . . Reactor . | . . . . . . . Propulsion 9 | 2 1 . 2 . 4 . Treads 3 | 2 1 . . . . . Leg 3 | . . . . . 3 . Wheel 3 | . . . 2 . 1 . Hover . | . . . . . . . Flight . | . . . . . . . Utility 13 | . 2 . 5 3 1 2 Device 2 | . . . 1 1 . . Storage 1 | . 1 . . . . . Processor 1 | . 1 . . . . . Hackware 1 | . . . 1 . . . Protection 8 | . . . 3 2 1 2 Artifact . | . . . . . . . Weapon 17 | . 5 2 7 . . 3 Energy Gun 3 | . . . 2 . . 1 Energy Cannon 1 | . . . 1 . . . Ballistic Gun 13 | . 5 2 4 . . 2 Ballistic Cannon . | . . . . . . . Launcher . | . . . . . . . Special Weapon . | . . . . . . . Impact Weapon . | . . . . . . . Slashing Weapon . | . . . . . . . Piercing Weapon . | . . . . . . . Special Melee Weapon . | . . . . . . . Unidentified Prototypes 5 | . . . 5 . . . Parts Lost 8 | . . . 2 . 5 1 Power . | . . . . . . . Propulsion . | . . . . . . . Utility 4 | . . . 1 . 2 1 Weapon 4 | . . . 1 . 3 . Highest Loss Streak 5 | . . . 1 . 5 1 To Critical Strikes 1 | . . . . . 1 . Average Slot Usage (%) 97 | . 91 100 99 100 90 92 Engine 8 | . 11 10 5 11 11 11 Core 2 | . . 3 5 . . . Treads 13 | . 27 28 5 . . . Leg 1 | . . . . . 13 22 Wheel 10 | . . . 16 22 8 . Device 1 | . . . . 6 8 . Storage 11 | . 11 14 11 11 11 11 Processor 9 | . 13 14 10 . . . Hackware 2 | . . . 6 . . . Protection 5 | . . . 5 15 9 14 Energy Gun 5 | . . . 9 11 9 11 Ballistic Gun 24 | . 25 28 23 22 18 22 Naked Turns . | . . . . . . . Heaviest Build 51 | 3 31 31 51 51 46 . Greatest Support 60 | 40 40 40 40 24 60 . Greatest Overweight (x) 3 | . 1 . 2 2 3 . Average Overweight (x) . | . . . . 1 . . Largest Inventory Capacity 15 | 5 15 15 15 15 15 15 Average Capacity 14 | 5 13 15 15 15 15 15 Most Carried 15 | 1 12 15 15 15 15 13 Average Carried 12 | . 5 12 14 14 14 9 Final Capacity 15 | 5 15 15 15 15 15 15 Final Carried 15 | 1 11 14 14 15 14 9 Class Distribution -------------------- 43% | Mutant 29% | Gunner 26% | Tank Dominant Class ---------------- Mutant | -10/Materials Mutant | -10/Mines Gunner | -9/Materials Tank | -9/Mines Tank | -9/Exiles Tank | -8/Mines Resources | -11 -10 -10 -9 -9 -9 -8 ----------- Run | Yrd Mat Min Mat Min Exi Min Matter Collected 2046 | 179 383 310 906 222 46 . Remotely . | . . . . . . . Salvage Created 2909 | . 507 346 1684 270 16 86 Parts 224 | . 44 21 129 28 . 2 Haulers Intercepted 6 | . 1 . 5 . . . Recyclers Shooed 1 | . 1 . . . . . Parts Field Recycled . | . . . . . . . Retrieved Matter . | . . . . . . . Parts Self-Destructed . | . . . . . . . Prevented . | . . . . . . . Kills | -11 -10 -10 -9 -9 -9 -8 ------- Run | Yrd Mat Min Mat Min Exi Min Combat Hostiles Destroyed 77 | . 13 13 35 13 1 2 Guns 77 | . 13 13 35 13 1 2 Classes Destroyed 14 | . 9 1 3 1 . . Worker 6 | . 2 1 3 . . . Builder 2 | . 1 . 1 . . . Tunneler 3 | . 1 1 1 . . . Hauler 6 | . 1 . 5 . . . Recycler 6 | . 1 2 3 . . . Operator 5 | . 2 . 3 . . . Watcher 8 | . 3 . 5 . . . Swarmer 30 | . 9 3 9 9 . . Grunt 27 | . 4 2 17 2 . 2 Brawler 1 | . . . . 1 . . Duelist 2 | . . . 1 1 . . Protector 1 | . . . 1 . . . Sentry 7 | . . . 7 . . . Assembled 10 | . . 8 . . 2 . Thug 1 | . . . . 1 . . Best Kill Streak 9 | . 8 3 9 5 1 2 Combat Bots Only 6 | . 6 3 5 5 1 2 Max Kills in Single Turn 2 | . 2 2 2 2 1 1 Gunslinging 1 | . 1 1 1 1 . . Exploded . | . . . . . . . Melee . | . . . . . . . Uniques/NPCs Destroyed . | . . . . . . . Combat | -11 -10 -10 -9 -9 -9 -8 -------- Run | Yrd Mat Min Mat Min Exi Min Hostile Shots Fired 280 | . 34 27 78 34 74 33 Missed 79 | . 11 9 25 9 25 . Damage Taken 3123 | . 219 193 610 248 1255 598 Core 528 | . 20 54 131 12 186 125 Absorbed by Shields 73 | . . . . 22 51 . Regen/Repaired (Parts) 90 | . . . 90 . . . Core Remaining (%) 85 | 100 . 70 . . . . Volleys Fired 186 | . 38 26 86 24 4 8 Largest 3 | . 2 2 3 3 3 3 Hottest 111 | . 46 46 111 111 111 111 Shots Fired 491 | . 76 52 257 72 12 22 Gun 491 | . 76 52 257 72 12 22 Cannon . | . . . . . . . Launcher . | . . . . . . . Special . | . . . . . . . Kinetic 384 | . 76 52 184 48 8 16 Thermal 107 | . . . 73 24 4 6 Explosive . | . . . . . . . Electromagnetic . | . . . . . . . Robot Hit Streak 14 | . 10 11 14 5 3 5 Robot Miss Streak 11 | . 5 6 9 11 9 8 Penetration Max . | . . . . . . . Secondary Targets 13 | . 2 2 7 2 . . Max Gunslinging Chain 2 | . 1 1 2 1 . . Shots Hit Robots 347 | . 55 37 185 46 8 16 Core Hits 302 | . 34 31 162 48 11 16 Critical Kills 2 | . . 1 1 . . . Critical Parts Destroyed 4 | . 1 . 2 1 . . Critical Strikes 6 | . 1 1 3 1 . . Destroy 6 | . 1 1 3 1 . . Melee Attacks . | . . . . . . . Impact . | . . . . . . . Slashing . | . . . . . . . Piercing . | . . . . . . . Sneak Attacks . | . . . . . . . Combat Hostiles . | . . . . . . . Follow-up Attacks . | . . . . . . . Damage Inflicted 5154 | . 847 607 2703 573 136 288 Guns 5151 | . 847 607 2700 573 136 288 Cannons . | . . . . . . . Explosions . | . . . . . . . Melee . | . . . . . . . Ramming 3 | . . . 3 . . . Kinetic 3863 | . 847 607 1779 336 87 207 Thermal 1288 | . . . 921 237 49 81 Explosive . | . . . . . . . Electromagnetic . | . . . . . . . Impact . | . . . . . . . Slashing . | . . . . . . . Piercing . | . . . . . . . Highest Corruption . | . . . . . . . Average Corruption . | . . . . . . . Corruption Purged . | . . . . . . . Corruption Blocked . | . . . . . . . Overload Shots . | . . . . . . . Overflow Damage . | . . . . . . . Projectiles . | . . . . . . . Explosions . | . . . . . . . Melee . | . . . . . . . Knockbacks . | . . . . . . . Impact . | . . . . . . . Kinetic . | . . . . . . . Secondary . | . . . . . . . Self-Inflicted Damage . | . . . . . . . Shots . | . . . . . . . Rammed 1 | . . . 1 . . . Targets Rammed 1 | . . . 1 . . . Kicked . | . . . . . . . Crushed . | . . . . . . . Highest Temperature 682 | . 4 15 682 246 169 525 Average Temperature 100 | . 1 7 91 100 72 319 Received Heat Transfer 741 | . 66 91 213 18 56 297 Effects 13 | . . . 6 . . 7 Shutdowns 2 | . . . 1 . . 1 Energy Bleed 2 | . . . 1 . . 1 Interference 2 | . . . 2 . . . Matter Decay 2 | . . . . . . 2 Damage (minor) 3 | . . . 2 . . 1 Damage (major) 1 | . . . . . . 1 Damage (core) 1 | . . . . . . 1 Siege Activations . | . . . . . . . Robots Corrupted . | . . . . . . . Combat Hostiles . | . . . . . . . Parts Fried . | . . . . . . . Impact Corruptions . | . . . . . . . Robots Melted . | . . . . . . . Combat Hostiles . | . . . . . . . Parts Melted . | . . . . . . . Heat Transferred 1616 | . . . 1146 310 60 100 Parts Sabotaged . | . . . . . . . Parts Stolen . | . . . . . . . Parts Stripped . | . . . . . . . Power Chain Reactions . | . . . . . . . Alert | -11 -10 -10 -9 -9 -9 -8 ------- Run | Yrd Mat Min Mat Min Exi Min Peak Influence 647 | . 212 176 647 482 . 50 Initial 252 | . . 21 5 252 . . Average 229 | . 86 56 367 364 . 22 Maximum Alert Level 2 | . 1 . 2 2 . . Low Security (%) 54 | 100 94 100 27 . . 100 Level 1 20 | . 5 . 17 70 . . Level 2 25 | . . . 55 29 . . Level 3 . | . . . . . . . Level 4 . | . . . . . . . Level 5 . | . . . . . . . High Security . | . . . . . . . Max Security . | . . . . . . . Squads Dispatched 9 | . 3 . 5 1 . . Investigation 3 | . 1 . 1 1 . . Extermination . | . . . . . . . Reinforcement 5 | . 2 . 3 . . . Assault 1 | . . . 1 . . . Garrison . | . . . . . . . Intercept . | . . . . . . . Searches Triggered . | . . . . . . . Construction Impeded . | . . . . . . . Haulers Reinforced . | . . . . . . . Active Scanning Responses . | . . . . . . . Cargo Convoy Interrupts . | . . . . . . . Stealth | -11 -10 -10 -9 -9 -9 -8 --------- Run | Yrd Mat Min Mat Min Exi Min Distress Signals 3 | . . . 2 . . 1 Communications Jammed . | . . . . . . . Distress Signals . | . . . . . . . Times Spotted 123 | . 18 12 48 14 28 3 Peak Tracking Total 10 | . 3 2 5 4 10 4 Tactical Retreats 3 | . . . . . 3 . Traps | -11 -10 -10 -9 -9 -9 -8 ------- Run | Yrd Mat Min Mat Min Exi Min Traps Triggered 3 | . 2 . . 1 . . Indirectly . | . . . . . . . Trap Hack Attempts . | . . . . . . . Triggered . | . . . . . . . Disarmed . | . . . . . . . Reprogrammed . | . . . . . . . Reused . | . . . . . . . Traps Extracted . | . . . . . . . Installed . | . . . . . . . Triggered . | . . . . . . . Machines | -11 -10 -10 -9 -9 -9 -8 ---------- Run | Yrd Mat Min Mat Min Exi Min Machines Disabled 3 | . . . . . 3 . Max in Single Turn . | . . . . . . . Machines Repaired . | . . . . . . . Machines Dismantled . | . . . . . . . Machines Sabotaged . | . . . . . . . Overloaded Fab Kills . | . . . . . . . Hacking | -11 -10 -10 -9 -9 -9 -8 --------- Run | Yrd Mat Min Mat Min Exi Min Machines Accessed 10 | . 3 . 3 2 2 . Terminals 5 | . 3 . 2 . . . Fabricators . | . . . . . . . Repair Stations 1 | . . . 1 . . . Recycling Units . | . . . . . . . Scanalyzers . | . . . . . . . Garrison Access . | . . . . . . . Total Hacks 25 | . 10 . 11 2 2 . Successful 14 | . 3 . 7 2 2 . Failed 10 | . 6 . 4 . . . Catastrophic 1 | . 1 . . . . . Database Lockouts 1 | . 1 . . . . . Manual 25 | . 9 . 15 . 1 . Terminals 19 | . 10 . 9 . . . Fabricators . | . . . . . . . Repair Stations 2 | . . . 2 . . . Recycling Units . | . . . . . . . Scanalyzers . | . . . . . . . Garrison Access . | . . . . . . . Terminal Hacks 11 | . 3 . 4 2 2 . Record 1 | . . . . . 1 . Robot Analysis 7 | . 3 . 4 . . . Open Door 2 | . . . . 2 . . Derelict Proto ID Bank 1 | . . . . . 1 . Fabricator Hacks . | . . . . . . . Repair Station Hacks 2 | . . . 2 . . . Scan Component 1 | . . . 1 . . . Repair 1 | . . . 1 . . . Recycling Unit Hacks . | . . . . . . . Scanalyzer . | . . . . . . . Garrison Access Hacks . | . . . . . . . Unauthorized Hacks 1 | . . . 1 . . . Terminals 1 | . . . 1 . . . Botnet 1 | . . . 1 . . . Fabricators . | . . . . . . . Repair Stations . | . . . . . . . Recycling Units . | . . . . . . . Scanalyzers . | . . . . . . . Garrison Access . | . . . . . . . Data Cores Recovered . | . . . . . . . Used . | . . . . . . . Hacking Detections 7 | . 2 . 5 . . . Full Trace Events 3 | . 2 . 1 . . . Feedback Events . | . . . . . . . Feedback Blocked . | . . . . . . . Robot Schematics Acquired . | . . . . . . . Robots Built . | . . . . . . . Authchips . | . . . . . . . Time . | . . . . . . . Total Robot Build Rating . | . . . . . . . Part Schematics Acquired . | . . . . . . . Parts Built . | . . . . . . . Authchips . | . . . . . . . Time . | . . . . . . . Total Part Build Rating . | . . . . . . . Parts Repaired 1 | . . . 1 . . . Time 32 | . . . 32 . . . Parts Recycled . | . . . . . . . Recycled Matter . | . . . . . . . Retrieved Matter . | . . . . . . . Retrieved Components . | . . . . . . . Parts Scanalyzed . | . . . . . . . Part Schematics Acquired . | . . . . . . . Parts Damaged . | . . . . . . . Bothacking | -11 -10 -10 -9 -9 -9 -8 ------------ Run | Yrd Mat Min Mat Min Exi Min Used RIF Installer . | . . . . . . . Robots Hacked . | . . . . . . . Non-combat . | . . . . . . . Combat . | . . . . . . . Robot Hacks Applied . | . . . . . . . Relay Couplers Released . | . . . . . . . Fabnet Peak Effective % . | . . . . . . . Robots Rewired . | . . . . . . . Allies Hacked . | . . . . . . . Hacks Repelled . | . . . . . . . Allies | -11 -10 -10 -9 -9 -9 -8 -------- Run | Yrd Mat Min Mat Min Exi Min Total Allies 4 | . . . . 4 . . Largest Group 3 | . . . . 3 3 . Highest-Rated Group 40 | . . . . 40 40 . Highest-Rated Ally 31 | . . . . 31 16 . Total Orders . | . . . . . . . Ally Attacks 28 | . . . . . 28 . Total Damage 236 | . . . . . 236 . Kills 2 | . . . . . 2 . Allies Corrupted . | . . . . . . . Allies Melted . | . . . . . . . Intel | -11 -10 -10 -9 -9 -9 -8 ------- Run | Yrd Mat Min Mat Min Exi Min Robot Analysis Total 7 | . 3 . 4 . . . Derelict Logs Recovered 3 | . . 2 . 1 . . Drone Launches . | . . . . . . . Drone Recoveries . | . . . . . . . Exploration | -11 -10 -10 -9 -9 -9 -8 ------------- Run | Yrd Mat Min Mat Min Exi Min Turns Passed 4496 | 89 803 980 1479 798 317 30 Spaces Moved 2800 | 57 403 549 857 626 308 . Core 6 | 6 . . . . . . Treads 1191 | 51 403 549 188 . . . Legs 193 | . . . . . 193 . Wheels 1410 | . . . 669 626 115 . Hover . | . . . . . . . Flight . | . . . . . . . Fastest Speed 50 | 50 160 160 105 105 90 . Average Speed 128 | 148 160 160 117 109 96 . Slowest Speed 240 | 160 240 160 160 120 170 . Overloaded Moves . | . . . . . . . Propulsion Burnouts . | . . . . . . . Robots Hopped . | . . . . . . . Cave-ins Triggered . | . . . . . . . Exploration Rate (%) 56 | 4 70 96 64 95 62 2 Regions Visited 6 Branch Regions 4 Pre-discovered Areas 3 | . . 1 . 1 1 . Known Exits Taken . | . . . . . . . Unknown Exits Taken 6 | 1 1 1 1 1 1 . Scrap Searched 3 | . . 1 . 2 . . Spaces Dug . | . . . . . . . Terrain Destroyed . | . . . . . . . Melee . | . . . . . . . Projectile . | . . . . . . . AOE . | . . . . . . . Terrain Rammed . | . . . . . . . Walls Destroyed . | . . . . . . . Machines Disabled . | . . . . . . . Actions | -11 -10 -10 -9 -9 -9 -8 --------- Run | Yrd Mat Min Mat Min Exi Min Total 3287 | 60 478 599 1136 682 319 13 Wait 195 | . 18 12 143 22 . . Move 2794 | 56 402 548 856 625 307 . Hop . | . . . . . . . Pick Up 34 | 1 10 6 13 4 . . Fast Attach 25 | 3 8 . 10 . 4 . Attach 13 | . 1 . 6 . 1 5 Detach . | . . . . . . . Swap 9 | . 1 3 2 3 . . Drop 30 | . . 4 19 4 3 . Fire 186 | . 38 26 86 24 4 8 Melee . | . . . . . . . Ram . | . . . . . . . Kick . | . . . . . . . Crush 1 | . . . 1 . . . Escape Stasis . | . . . . . . . Rewire . | . . . . . . . Trap . | . . . . . . . Miscellaneous . | . . . . . . . Route ------- -11/Scrapyard -10/Materials (discovered 3 exits: *Mat x2 / [*Min]) -10/Mines (discovered 2 exits: *Mat x2) -9/Materials (discovered 5 exits: *Mat x2 / *Min x2 / Sto) -9/Mines -9/Exiles -8/Mines History --------- Turn | Location | Event 6 | -11/Scrapyard | Discovered new exit (range 16) 90 | -11/Scrapyard | Entered Materials 153 | -10/Materials | Central database locked down 241 | -10/Materials | Discovered new exit (range 12) 317 | -10/Materials | Build established: Mutant 444 | -10/Materials | Discovered new exit (range 13) 719 | -10/Materials | Discovered new exit (range 11) 893 | -10/Materials | Entered Mines 894 | -10/Mines | Assembled infested the area 912 | -10/Mines | Met a Derelict bent on vengeance 994 | -10/Mines | Learned 2 Materials zone layouts 1115 | -10/Mines | Discovered new exit (range 9) 1206 | -10/Mines | Discovered new exit (range 15) 1352 | -10/Mines | Learned location of Storage (-9) 1460 | -10/Mines | Found a damaged Exp. Sensor Array with a note attached 1463 | -10/Mines | Found Prototype Device 1517 | -10/Mines | Received a Rocket Launcher from a helpful Derelict 1545 | -10/Mines | Learned Materials terminal intel 1873 | -10/Mines | Entered Materials 1873 | -9/Materials | Evolved 2 slots: Utility x1, Weapon x1 1874 | -9/Materials | Identified exit to Materials 1874 | -9/Materials | Identified exit to Storage 1875 | -9/Materials | Loaded intel: 12 terminal locations 2171 | -9/Materials | Build established: Gunner 2753 | -9/Materials | Discovered new exit (range 12) 3025 | -9/Materials | Discovered exit to Materials (range 15) 3073 | -9/Materials | First assault squad dispatched 3226 | -9/Materials | Discovered new exit (range 6) 3266 | -9/Materials | Repaired Shotgun 3267 | -9/Materials | Identified Exp. Sensor Array 3352 | -9/Materials | Entered Mines 3355 | -9/Mines | Received a Mining Laser from a helpful Derelict 3528 | -9/Mines | Build established: Tank 3623 | -9/Mines | Deemed a non-threat by the Exiles lab entrance 3623 | -9/Mines | Discovered new exit (range 5) 3773 | -9/Mines | Met a Derelict shopkeep closing up shop 3823 | -9/Mines | Met a Derelict who couldn't figure out how to use a Trap Extractor 4020 | -9/Mines | Assisted by bots powering up and referring to "LRC-V3" 4150 | -9/Mines | Entered Exiles 4150 | -9/Exiles | Accompanied by 3 allies 4176 | -9/Exiles | Met 8R-AWN 4194 | -9/Exiles | Met EX-HEX 4223 | -9/Exiles | Met EX-BIN 4238 | -9/Exiles | Aligned with FarCom system 4239 | -9/Exiles | Given EX-Vault access code 4264 | -9/Exiles | Opened EX-Vault 4275 | -9/Exiles | Found Potential Leg 4278 | -9/Exiles | Found Potential Leg 4299 | -9/Exiles | Warned to stay clear of 0b10 Research branches 4309 | -9/Exiles | Exiles lab attacked by MAIN.C 4331 | -9/Exiles | Learned location of Zion (-6) 4377 | -9/Exiles | Attacked by the Exiles 4426 | -9/Exiles | Core integrity fell below 50% 4435 | -9/Exiles | Lost 6 allies 4448 | -9/Exiles | Lost 5 parts (2u3w) 4457 | -9/Exiles | Discovered new exit (range 10) 4465 | -9/Exiles | Core integrity fell below 20% 4467 | -9/Exiles | Left Exiles lab with Potential Leg 4467 | -9/Exiles | Entered Mines 4498 | -8/Mines | Core destroyed Last Messages --------------- 04434_ Penetrated by HV Slug. 04434_ HV Slug penetrates Machine. 04434_ HV Slug penetrates Wall. 04457_ EXIT=FOUND 04459_ Knocked back. 04467_ Acquired 2 matter. A strange signal echoes through the mines. LOCATION=UNKNOWN GOAL=ESCAPE 04469_ Med. Armor Plating destroyed. 04482_ G-47 Trooper destroyed. 04485_ Overheating: Shotgun damaged (-35). 04485_ G-50 Soldier destroyed. 04488_ Power failure, Hvy. Ion Engine shutdown. 04492_ Overheating: Matter decay (-23). 04493_ Overheating: Lrg. Storage Unit damaged (-129). 04494_ Overheating: Energy bleed (-33). 04495_ Overheating: Matter decay (-21). 04498_ Overheating: Core damaged (-60). Map ----- +----------------------------------------------------+ | ?????????????????????????????????????????????????? | | ?????????????????????????????????????????????????? | | ?????????????????????????????????????????????????? | | ?????????????????????????????????????????????????? | | ?????????????????????????????????????????????????? | | ?????????????????????????????????????????????????? | | ?????????????????????????????????????????????????? | | ?????????????????????????????????????????????????? | | ?????????????????????????????????????????????????? | | ?????????????????????????????????????????????????? | | ?????????????????????????????????????????????????? | | ?????????????????????????????????????????????????? | | ?????????????????????????????????????????????????? | | ?????????????????????????????????????????????????? | | ?????????????????????????????????????????????????? | | ?????????????????????????????????????????????????? | | ?????????????????????????????????????????????????? | | ?????????????????????????????????????????????????? | | ?????????????????????????????????????????????????? | | ????????????????????########?????????????????????? | | ??????????????????### #?????????????????????? | | ??????????????????? """ #?????????????????????? | | ????????????????????# """ #?????????????????????? | | ????????????????????# """ #?????????????????????? | | ????????????????????# #?????????????????????? | | ????????????????????# @ #?????????????????????? | | ????????????????????# g%%#?????????????????????? | | ????????????????????########?????????????????????? | | ?????????????????????????????????????????????????? | | ?????????????????????????????????????????????????? | | ?????????????????????????????????????????????????? | | ?????????????????????????????????????????????????? | | | | | | | | | | | | | | | | | | | | | | | | | | | | | | | | | | | | | +----------------------------------------------------+ Best States ------------- Heat Dissipation 28 Energy Generation 14 Energy Capacity 280 Matter Stores 300 Matter Capacity 300 Sight Range 16 Terrain Scan Density 10 Armor Coverage 450 Evasion (%) 57 Targeting Accuracy 5 Recoil Reduction 2 Offensive Hacking 10 Item Schematics ----------------- None Robot Schematics ------------------ None Fabricated ------------ Nothing Alien Tech Used ----------------- None Achievements -------------- None Challenges ------------ None Game ------ Seed gottagofast Manual? 1 Play Time 00:33:11 Cumulative 151.8 hours Start 2024.06.01 @ 19:27:19 End 2024.06.01 @ 20:00:12 Sessions 1 Manual Loads 0 Difficulty Rogue Special Mode None Game No. 144 Rogue 144 Adventurer 0 Explorer 0 Win Type - Total 8 Types 7/0/0/1/0/0/0/0/0 Lore% 67 Gallery% 78 Achievement% 62 Wizard Run 0 Options --------- Layout 1 ASCII 0 Keyboard 0 Movement Numpad Keybinds 0 Fullscreen 1 Font 24/Smallcaps Map View 50x35 Zoom Use 0% Tactical HUD 1 Map Filters NONE Filters NONE Steam 1 RUN: 6495c203-e43b-4e6d-97be-7065de1f3bdb